[Event "Titled Tuesday Blitz January 17 Late 2023"]
[White "Papayan, Oleg"]
[Black "Mendez Machado, Andre"]
[WhiteFideId "4193911"]
[BlackFideId "6603793"]
[WhiteElo "2253"]
[BlackElo "1974"]
[Result "1-0"]
[Round "02"]
[TimeControl "180+2"]
[Date "2023.01.17"]
[WhiteClock "0:01:22"]
[BlackClock "0:00:16"]

1. e4 {[%clk 0:03:00]}  e5 {[%clk 0:02:54]} 2. Nf3 {[%clk 0:03:01]}  Nc6 {[%clk 0:02:53]} 3. Bb5 {[%clk 0:03:01]}  a6 {[%clk 0:02:53]} 4. Bxc6 {[%clk 0:03:01]}  dxc6 {[%clk 0:02:54]} 5. O-O {[%clk 0:03:01]}  Bg4 {[%clk 0:02:54]} 6. h3 {[%clk 0:03:02]}  h5 {[%clk 0:02:55]} 7. d3 {[%clk 0:03:02]}  Qf6 {[%clk 0:02:54]} 8. Nbd2 {[%clk 0:03:03]}  g5 {[%clk 0:02:52]} 9. Re1 {[%clk 0:02:57]}  Bc5 {[%clk 0:02:19]} 10. b3 {[%clk 0:02:33]}  Bxh3 {[%clk 0:02:05]} 11. gxh3 {[%clk 0:02:28]}  g4 {[%clk 0:02:05]} 12. Bb2 {[%clk 0:02:18]}  gxf3 {[%clk 0:01:59]} 13. Nxf3 {[%clk 0:02:12]}  Nh6 {[%clk 0:01:40]} 14. Bxe5 {[%clk 0:02:04]}  Rg8+ {[%clk 0:01:40]} 15. Kf1 {[%clk 0:02:04]}  Qe6 {[%clk 0:01:34]} 16. Ke2 {[%clk 0:01:50]}  Qxh3 {[%clk 0:01:07]} 17. Rh1 {[%clk 0:01:49]}  Qg2 {[%clk 0:00:32]} 18. Qg1 {[%clk 0:01:46]}  Qxg1 {[%clk 0:00:20]} 19. Raxg1 {[%clk 0:01:47]}  Rxg1 {[%clk 0:00:20]} 20. Nxg1 {[%clk 0:01:48]}  Ng4 {[%clk 0:00:18]} 21. Rxh5 {[%clk 0:01:41]}  O-O-O {[%clk 0:00:19]} 22. Bxc7 {[%clk 0:01:23]}  Bxf2 {[%clk 0:00:16]} 23. Bxd8 {[%clk 0:01:22]} 1-0


[Site "https://www.chess.com"]

[Event "Titled Tuesday Blitz January 17 Late 2023"]
[White "Weissbarth, Adam"]
[Black "Bambino Filho, Antonio Carlos"]
[WhiteFideId "2018187"]
[BlackFideId "2113163"]
[WhiteElo "2144"]
[BlackElo "2144"]
[Result "1-0"]
[Round "02"]
[TimeControl "180+2"]
[Date "2023.01.17"]
[WhiteClock "0:00:15"]
[BlackClock "0:00:34"]

1. e4 {[%clk 0:03:00]}  c5 {[%clk 0:02:59]} 2. c3 {[%clk 0:03:00]}  Nc6 {[%clk 0:02:55]} 3. d4 {[%clk 0:03:00]}  cxd4 {[%clk 0:02:56]} 4. cxd4 {[%clk 0:03:01]}  d5 {[%clk 0:02:57]} 5. exd5 {[%clk 0:03:01]}  Qxd5 {[%clk 0:02:58]} 6. Nf3 {[%clk 0:03:02]}  Nf6 {[%clk 0:02:57]} 7. Nc3 {[%clk 0:03:01]}  Qd6 {[%clk 0:02:58]} 8. d5 {[%clk 0:02:50]}  Ne5 {[%clk 0:02:55]} 9. Nb5 {[%clk 0:02:45]}  Nxf3+ {[%clk 0:02:52]} 10. Qxf3 {[%clk 0:02:46]}  Qe5+ {[%clk 0:02:44]} 11. Be2 {[%clk 0:02:35]}  Bg4 {[%clk 0:02:41]} 12. Qe3 {[%clk 0:02:25]}  Qxe3 {[%clk 0:02:39]} 13. Bxe3 {[%clk 0:02:26]}  Bxe2 {[%clk 0:02:24]} 14. Nc7+ {[%clk 0:02:25]}  Kd7 {[%clk 0:02:22]} 15. Nxa8 {[%clk 0:02:26]}  Ba6 {[%clk 0:02:19]} 16. Bxa7 {[%clk 0:02:19]}  Nxd5 {[%clk 0:02:19]} 17. Nb6+ {[%clk 0:02:14]}  Nxb6 {[%clk 0:02:19]} 18. Bxb6 {[%clk 0:02:15]}  e5 {[%clk 0:02:17]} 19. O-O-O+ {[%clk 0:02:13]}  Ke6 {[%clk 0:02:17]} 20. Rhe1 {[%clk 0:02:12]}  Be7 {[%clk 0:02:17]} 21. f4 {[%clk 0:02:11]}  f6 {[%clk 0:02:12]} 22. Kb1 {[%clk 0:02:05]}  Rc8 {[%clk 0:02:10]} 23. fxe5 {[%clk 0:02:05]}  fxe5 {[%clk 0:02:10]} 24. Bd4 {[%clk 0:02:02]}  Bf6 {[%clk 0:02:09]} 25. Bc3 {[%clk 0:02:01]}  Kf5 {[%clk 0:02:07]} 26. Rd5 {[%clk 0:01:58]}  Bc4 {[%clk 0:02:02]} 27. Rd7 {[%clk 0:01:51]}  b5 {[%clk 0:01:59]} 28. h3 {[%clk 0:01:49]}  h5 {[%clk 0:01:59]} 29. g4+ {[%clk 0:01:43]}  hxg4 {[%clk 0:02:00]} 30. hxg4+ {[%clk 0:01:43]}  Kxg4 {[%clk 0:02:00]} 31. Bxe5 {[%clk 0:01:43]}  Re8 {[%clk 0:01:47]} 32. Rg1+ {[%clk 0:01:29]}  Kf5 {[%clk 0:01:43]} 33. Bxf6 {[%clk 0:01:29]}  gxf6 {[%clk 0:01:43]} 34. b3 {[%clk 0:01:27]}  Be2 {[%clk 0:01:37]} 35. Kb2 {[%clk 0:01:24]}  Kf4 {[%clk 0:01:35]} 36. a4 {[%clk 0:01:18]}  bxa4 {[%clk 0:01:35]} 37. bxa4 {[%clk 0:01:19]}  f5 {[%clk 0:01:35]} 38. Re1 {[%clk 0:01:17]}  Kf3 {[%clk 0:01:35]} 39. a5 {[%clk 0:01:12]}  f4 {[%clk 0:01:35]} 40. Kc3 {[%clk 0:01:10]}  Kf2 {[%clk 0:01:31]} 41. Rh1 {[%clk 0:01:07]}  f3 {[%clk 0:01:27]} 42. Rh6 {[%clk 0:01:08]}  Ke1 {[%clk 0:01:25]} 43. Rh1+ {[%clk 0:01:04]}  Kf2 {[%clk 0:01:23]} 44. Rd6 {[%clk 0:00:53]}  Ke3 {[%clk 0:01:23]} 45. Rh3 {[%clk 0:00:50]}  Kf4 {[%clk 0:01:18]} 46. Rf6+ {[%clk 0:00:31]}  Kg4 {[%clk 0:01:18]} 47. Rh7 {[%clk 0:00:29]}  Kg3 {[%clk 0:01:17]} 48. Rg7+ {[%clk 0:00:29]}  Kf2 {[%clk 0:01:17]} 49. a6 {[%clk 0:00:27]}  Rc8+ {[%clk 0:01:17]} 50. Kd4 {[%clk 0:00:26]}  Ke1 {[%clk 0:01:13]} 51. Rgf7 {[%clk 0:00:24]}  Ra8 {[%clk 0:01:04]} 52. Ke3 {[%clk 0:00:18]}  Re8+ {[%clk 0:00:59]} 53. Kd4 {[%clk 0:00:17]}  Rd8+ {[%clk 0:00:51]} 54. Kc5 {[%clk 0:00:17]}  Ra8 {[%clk 0:00:51]} 55. a7 {[%clk 0:00:17]}  Re8 {[%clk 0:00:38]} 56. Rf8 {[%clk 0:00:16]}  Re5+ {[%clk 0:00:37]} 57. Kd6 {[%clk 0:00:16]}  Ra5 {[%clk 0:00:34]} 58. a8=Q {[%clk 0:00:16]}  Rxa8 {[%clk 0:00:33]} 59. Rxa8 {[%clk 0:00:17]}  f2 {[%clk 0:00:34]} 60. Ra1+ {[%clk 0:00:16]}  Bd1 {[%clk 0:00:34]} 61. Rxd1+ {[%clk 0:00:15]} 1-0


[Site "https://www.chess.com"]

[Event "Titled Tuesday Blitz January 17 Late 2023"]
[White "Papp, Petra"]
[Black "Becerra, Juan David"]
[WhiteFideId "739049"]
[BlackFideId "4404998"]
[WhiteElo "2343"]
[BlackElo "2382"]
[Result "1-0"]
[Round "02"]
[TimeControl "180+2"]
[Date "2023.01.17"]
[WhiteClock "0:00:26"]
[BlackClock "0:00:21"]

1. e4 {[%clk 0:03:00]}  e5 {[%clk 0:02:57]} 2. f4 {[%clk 0:02:59]}  d5 {[%clk 0:02:40]} 3. exd5 {[%clk 0:03:00]}  e4 {[%clk 0:02:39]} 4. d3 {[%clk 0:02:59]}  Qxd5 {[%clk 0:02:32]} 5. Nc3 {[%clk 0:02:59]}  Bb4 {[%clk 0:02:32]} 6. Bd2 {[%clk 0:03:00]}  Bxc3 {[%clk 0:02:29]} 7. Bxc3 {[%clk 0:03:01]}  Nf6 {[%clk 0:02:29]} 8. Bxf6 {[%clk 0:03:00]}  gxf6 {[%clk 0:02:29]} 9. dxe4 {[%clk 0:03:01]}  Qxe4+ {[%clk 0:02:29]} 10. Qe2 {[%clk 0:03:01]}  Bf5 {[%clk 0:02:27]} 11. O-O-O {[%clk 0:02:48]}  Qxe2 {[%clk 0:02:25]} 12. Bxe2 {[%clk 0:02:47]}  Nd7 {[%clk 0:02:24]} 13. Nf3 {[%clk 0:02:44]}  O-O-O {[%clk 0:02:13]} 14. Rd5 {[%clk 0:02:35]}  Be6 {[%clk 0:02:00]} 15. Rd2 {[%clk 0:02:32]}  Nc5 {[%clk 0:01:56]} 16. Rhd1 {[%clk 0:02:23]}  Ne4 {[%clk 0:01:45]} 17. Rxd8+ {[%clk 0:02:11]}  Rxd8 {[%clk 0:01:46]} 18. Rxd8+ {[%clk 0:02:10]}  Kxd8 {[%clk 0:01:45]} 19. Bd3 {[%clk 0:01:55]}  f5 {[%clk 0:01:26]} 20. a3 {[%clk 0:01:44]}  h6 {[%clk 0:01:23]} 21. Nd4 {[%clk 0:01:36]}  Ke7 {[%clk 0:01:21]} 22. Kd1 {[%clk 0:01:16]}  Bd7 {[%clk 0:01:19]} 23. Ke2 {[%clk 0:01:13]}  c5 {[%clk 0:01:18]} 24. Nf3 {[%clk 0:01:09]}  Kf6 {[%clk 0:01:09]} 25. Ne5 {[%clk 0:01:08]}  Be6 {[%clk 0:01:04]} 26. Ke3 {[%clk 0:01:05]}  Nd6 {[%clk 0:01:01]} 27. b3 {[%clk 0:01:03]}  a6 {[%clk 0:00:54]} 28. h3 {[%clk 0:01:01]}  Ke7 {[%clk 0:00:31]} 29. c4 {[%clk 0:00:54]}  f6 {[%clk 0:00:29]} 30. Nf3 {[%clk 0:00:54]}  b5 {[%clk 0:00:27]} 31. Nd2 {[%clk 0:00:53]}  b4 {[%clk 0:00:25]} 32. axb4 {[%clk 0:00:48]}  cxb4 {[%clk 0:00:26]} 33. Nf3 {[%clk 0:00:43]}  Nb7 {[%clk 0:00:26]} 34. Nd4 {[%clk 0:00:43]}  Nc5 {[%clk 0:00:26]} 35. Nc6+ {[%clk 0:00:42]}  Kd6 {[%clk 0:00:22]} 36. Nxb4 {[%clk 0:00:43]}  a5 {[%clk 0:00:22]} 37. Nc2 {[%clk 0:00:36]}  Nxb3 {[%clk 0:00:22]} 38. Nd4 {[%clk 0:00:35]}  a4 {[%clk 0:00:20]} 39. Nxb3 {[%clk 0:00:30]}  axb3 {[%clk 0:00:21]} 40. Kd2 {[%clk 0:00:26]}  Kc5 {[%clk 0:00:20]} 41. Kc3 {[%clk 0:00:26]}  Bxc4 {[%clk 0:00:20]} 42. Bxc4 {[%clk 0:00:26]}  b2 {[%clk 0:00:21]} 43. Ba2 {[%clk 0:00:26]} 1-0


[Site "https://www.chess.com"]

[Event "Titled Tuesday Blitz January 17 Late 2023"]
[White "Curtis, John"]
[Black "Tokhirjonova, Gulrukhbegim"]
[WhiteFideId "3200256"]
[BlackFideId "14203626"]
[WhiteElo "2292"]
[BlackElo "2340"]
[Result "0-1"]
[Round "02"]
[TimeControl "180+2"]
[Date "2023.01.17"]
[WhiteClock "0:00:04"]
[BlackClock "0:00:17"]

1. e4 {[%clk 0:03:00]}  e5 {[%clk 0:02:53]} 2. Nf3 {[%clk 0:03:00]}  d6 {[%clk 0:02:51]} 3. Bc4 {[%clk 0:03:00]}  Be7 {[%clk 0:02:51]} 4. d3 {[%clk 0:03:00]}  c5 {[%clk 0:02:50]} 5. Nc3 {[%clk 0:02:59]}  Nf6 {[%clk 0:02:49]} 6. Nd5 {[%clk 0:02:57]}  Nxd5 {[%clk 0:02:45]} 7. Bxd5 {[%clk 0:02:57]}  Nc6 {[%clk 0:02:43]} 8. c3 {[%clk 0:02:52]}  O-O {[%clk 0:02:42]} 9. a4 {[%clk 0:02:51]}  Be6 {[%clk 0:02:42]} 10. Qb3 {[%clk 0:02:47]}  Qd7 {[%clk 0:02:42]} 11. O-O {[%clk 0:02:44]}  Kh8 {[%clk 0:02:28]} 12. Ng5 {[%clk 0:02:38]}  Bxd5 {[%clk 0:02:21]} 13. Qxd5 {[%clk 0:02:34]}  Bxg5 {[%clk 0:02:13]} 14. Bxg5 {[%clk 0:02:33]}  f5 {[%clk 0:02:13]} 15. f3 {[%clk 0:02:20]}  Rae8 {[%clk 0:02:04]} 16. Bh4 {[%clk 0:02:05]}  h6 {[%clk 0:02:02]} 17. Bf2 {[%clk 0:01:52]}  Qe7 {[%clk 0:01:53]} 18. Rae1 {[%clk 0:01:41]}  f4 {[%clk 0:01:46]} 19. d4 {[%clk 0:01:32]}  cxd4 {[%clk 0:01:36]} 20. cxd4 {[%clk 0:01:32]}  Nb4 {[%clk 0:01:30]} 21. Qb5 {[%clk 0:01:32]}  Nc2 {[%clk 0:01:25]} 22. Rc1 {[%clk 0:01:18]}  Nxd4 {[%clk 0:01:23]} 23. Bxd4 {[%clk 0:01:17]}  exd4 {[%clk 0:01:24]} 24. Rfd1 {[%clk 0:01:14]}  Qe5 {[%clk 0:01:22]} 25. Qd3 {[%clk 0:01:06]}  d5 {[%clk 0:01:15]} 26. Rc5 {[%clk 0:00:54]}  dxe4 {[%clk 0:01:07]} 27. Rxe5 {[%clk 0:00:54]}  exd3 {[%clk 0:01:07]} 28. Rxe8 {[%clk 0:00:53]}  Rxe8 {[%clk 0:01:08]} 29. Rxd3 {[%clk 0:00:53]}  Rd8 {[%clk 0:01:06]} 30. Kf2 {[%clk 0:00:48]}  Kh7 {[%clk 0:01:06]} 31. a5 {[%clk 0:00:49]}  Kg6 {[%clk 0:01:05]} 32. Rb3 {[%clk 0:00:49]}  d3 {[%clk 0:00:50]} 33. Ke1 {[%clk 0:00:48]}  d2+ {[%clk 0:00:50]} 34. Kd1 {[%clk 0:00:49]}  Rd7 {[%clk 0:00:50]} 35. Rc3 {[%clk 0:00:43]}  Rd5 {[%clk 0:00:42]} 36. b4 {[%clk 0:00:38]}  Rd4 {[%clk 0:00:41]} 37. b5 {[%clk 0:00:22]}  Rd5 {[%clk 0:00:39]} 38. Rb3 {[%clk 0:00:22]}  Kf5 {[%clk 0:00:39]} 39. Rb2 {[%clk 0:00:18]}  g5 {[%clk 0:00:37]} 40. h3 {[%clk 0:00:18]}  h5 {[%clk 0:00:36]} 41. Rb4 {[%clk 0:00:18]}  g4 {[%clk 0:00:34]} 42. hxg4+ {[%clk 0:00:16]}  hxg4 {[%clk 0:00:34]} 43. a6 {[%clk 0:00:15]}  b6 {[%clk 0:00:32]} 44. Rb2 {[%clk 0:00:12]}  gxf3 {[%clk 0:00:24]} 45. gxf3 {[%clk 0:00:12]}  Ke6 {[%clk 0:00:21]} 46. Rc2 {[%clk 0:00:10]}  Rxb5 {[%clk 0:00:20]} 47. Rc7 {[%clk 0:00:10]}  Rb2 {[%clk 0:00:18]} 48. Rxa7 {[%clk 0:00:10]}  Ra2 {[%clk 0:00:18]} 49. Ra8 {[%clk 0:00:09]}  Kf7 {[%clk 0:00:16]} 50. a7 {[%clk 0:00:07]}  Kg7 {[%clk 0:00:17]} 51. Ke2 {[%clk 0:00:04]}  b5 {[%clk 0:00:17]} 0-1


[Site "https://www.chess.com"]

[Event "Titled Tuesday Blitz January 17 Late 2023"]
[White "ajedrez-facil"]
[Black "Vega Gutierrez, Sabrina"]
[BlackFideId "2219026"]
[WhiteElo "2125"]
[BlackElo "2377"]
[Result "0-1"]
[Round "02"]
[TimeControl "180+2"]
[Date "2023.01.17"]
[WhiteClock "0:00:38"]
[BlackClock "0:00:28"]

1. e4 {[%clk 0:02:55]}  c5 {[%clk 0:02:59]} 2. Nf3 {[%clk 0:02:48]}  Nc6 {[%clk 0:02:59]} 3. Nc3 {[%clk 0:02:46]}  Nf6 {[%clk 0:02:58]} 4. Bb5 {[%clk 0:02:44]}  g6 {[%clk 0:02:54]} 5. O-O {[%clk 0:02:43]}  Bg7 {[%clk 0:02:53]} 6. Re1 {[%clk 0:02:44]}  Nd4 {[%clk 0:02:40]} 7. Bc4 {[%clk 0:02:38]}  d6 {[%clk 0:02:37]} 8. d3 {[%clk 0:02:32]}  Bg4 {[%clk 0:02:36]} 9. Be3 {[%clk 0:02:31]}  Bxf3 {[%clk 0:02:28]} 10. gxf3 {[%clk 0:02:32]}  Nh5 {[%clk 0:02:28]} 11. Nd5 {[%clk 0:02:24]}  O-O {[%clk 0:02:24]} 12. c3 {[%clk 0:02:23]}  Nc6 {[%clk 0:02:22]} 13. Nf4 {[%clk 0:02:23]}  Nxf4 {[%clk 0:01:59]} 14. Bxf4 {[%clk 0:02:22]}  e6 {[%clk 0:02:00]} 15. Qe2 {[%clk 0:02:18]}  a6 {[%clk 0:01:50]} 16. Bb3 {[%clk 0:02:18]}  b5 {[%clk 0:01:48]} 17. Bc2 {[%clk 0:02:19]}  g5 {[%clk 0:01:43]} 18. Bg3 {[%clk 0:02:19]}  Be5 {[%clk 0:01:41]} 19. Kg2 {[%clk 0:02:16]}  Qf6 {[%clk 0:01:41]} 20. Qe3 {[%clk 0:02:13]}  Bf4 {[%clk 0:01:28]} 21. Qe2 {[%clk 0:02:13]}  Kh8 {[%clk 0:01:18]} 22. Rad1 {[%clk 0:02:07]}  b4 {[%clk 0:01:18]} 23. Ba4 {[%clk 0:01:49]}  Ne7 {[%clk 0:01:18]} 24. d4 {[%clk 0:01:47]}  bxc3 {[%clk 0:01:16]} 25. bxc3 {[%clk 0:01:47]}  cxd4 {[%clk 0:01:16]} 26. cxd4 {[%clk 0:01:48]}  Ng6 {[%clk 0:01:14]} 27. Bb3 {[%clk 0:01:30]}  h5 {[%clk 0:01:11]} 28. e5 {[%clk 0:01:22]}  dxe5 {[%clk 0:01:04]} 29. dxe5 {[%clk 0:01:22]}  Qg7 {[%clk 0:01:05]} 30. Kh1 {[%clk 0:01:12]}  h4 {[%clk 0:01:03]} 31. Bxf4 {[%clk 0:01:12]}  Nxf4 {[%clk 0:01:03]} 32. Qe4 {[%clk 0:01:10]}  Rfd8 {[%clk 0:01:02]} 33. Bc2 {[%clk 0:01:09]}  Rxd1 {[%clk 0:00:58]} 34. Rxd1 {[%clk 0:01:10]}  Rc8 {[%clk 0:00:58]} 35. Bb1 {[%clk 0:01:01]}  Ng6 {[%clk 0:00:57]} 36. Qb7 {[%clk 0:00:59]}  Rf8 {[%clk 0:00:50]} 37. Bxg6 {[%clk 0:00:57]}  Qxg6 {[%clk 0:00:45]} 38. Qxa6 {[%clk 0:00:55]}  Qc2 {[%clk 0:00:43]} 39. Qd3 {[%clk 0:00:48]}  Qxf2 {[%clk 0:00:43]} 40. Rf1 {[%clk 0:00:46]}  Qxa2 {[%clk 0:00:42]} 41. Qe3 {[%clk 0:00:45]}  Rg8 {[%clk 0:00:42]} 42. Rg1 {[%clk 0:00:45]}  h3 {[%clk 0:00:32]} 43. f4 {[%clk 0:00:38]}  Qa8+ {[%clk 0:00:28]} 0-1


[Site "https://www.chess.com"]

[Event "Titled Tuesday Blitz January 17 Late 2023"]
[White "Bongo Akanga Ndjila, Barthelemy"]
[Black "Kouskoutis, Georgios-Alexandros"]
[WhiteFideId "10609431"]
[BlackFideId "4234049"]
[WhiteElo "1824"]
[BlackElo "2295"]
[Result "0-1"]
[Round "02"]
[TimeControl "180+2"]
[Date "2023.01.17"]
[WhiteClock "0:00:05"]
[BlackClock "0:00:04"]

1. d4 {[%clk 0:02:54]}  Nf6 {[%clk 0:02:50]} 2. Nf3 {[%clk 0:02:54]}  d5 {[%clk 0:02:46]} 3. c4 {[%clk 0:02:53]}  e6 {[%clk 0:02:46]} 4. Nc3 {[%clk 0:02:52]}  Be7 {[%clk 0:02:30]} 5. Bg5 {[%clk 0:02:52]}  O-O {[%clk 0:02:29]} 6. e3 {[%clk 0:02:51]}  c6 {[%clk 0:02:23]} 7. Qc2 {[%clk 0:02:51]}  Nbd7 {[%clk 0:02:21]} 8. Rd1 {[%clk 0:02:50]}  b6 {[%clk 0:02:21]} 9. cxd5 {[%clk 0:02:43]}  cxd5 {[%clk 0:02:20]} 10. Bb5 {[%clk 0:02:31]}  Bb7 {[%clk 0:02:15]} 11. O-O {[%clk 0:02:27]}  a6 {[%clk 0:02:14]} 12. Bd3 {[%clk 0:02:24]}  b5 {[%clk 0:02:10]} 13. a3 {[%clk 0:02:23]}  Rc8 {[%clk 0:02:09]} 14. Qe2 {[%clk 0:02:23]}  Nb6 {[%clk 0:02:06]} 15. Bxf6 {[%clk 0:02:15]}  Bxf6 {[%clk 0:02:02]} 16. e4 {[%clk 0:02:16]}  dxe4 {[%clk 0:01:58]} 17. Bxe4 {[%clk 0:02:14]}  Nd5 {[%clk 0:01:51]} 18. Rc1 {[%clk 0:01:53]}  Qd7 {[%clk 0:01:36]} 19. Ne5 {[%clk 0:01:45]}  Bxe5 {[%clk 0:01:32]} 20. dxe5 {[%clk 0:01:45]}  Nxc3 {[%clk 0:01:32]} 21. bxc3 {[%clk 0:01:42]}  Bxe4 {[%clk 0:01:31]} 22. Qxe4 {[%clk 0:01:40]}  Rc4 {[%clk 0:01:31]} 23. Qe3 {[%clk 0:01:36]}  Rfc8 {[%clk 0:01:27]} 24. Rfd1 {[%clk 0:01:33]}  Rxc3 {[%clk 0:01:07]} 25. Qe1 {[%clk 0:01:15]}  Rxc1 {[%clk 0:00:49]} 26. Rxc1 {[%clk 0:01:15]}  Rxc1 {[%clk 0:00:49]} 27. Qxc1 {[%clk 0:01:16]}  h6 {[%clk 0:00:49]} 28. g3 {[%clk 0:01:12]}  Qb7 {[%clk 0:00:42]} 29. Qc3 {[%clk 0:01:09]}  Qb6 {[%clk 0:00:18]} 30. h4 {[%clk 0:01:07]}  a5 {[%clk 0:00:16]} 31. Qc8+ {[%clk 0:01:06]}  Kh7 {[%clk 0:00:16]} 32. Qc2+ {[%clk 0:01:07]}  g6 {[%clk 0:00:15]} 33. h5 {[%clk 0:01:06]}  b4 {[%clk 0:00:13]} 34. hxg6+ {[%clk 0:01:05]}  fxg6 {[%clk 0:00:14]} 35. axb4 {[%clk 0:00:55]}  axb4 {[%clk 0:00:15]} 36. Qd3 {[%clk 0:00:55]}  Qb7 {[%clk 0:00:14]} 37. Qb3 {[%clk 0:00:54]}  Kg7 {[%clk 0:00:07]} 38. Kh2 {[%clk 0:00:40]}  Kf7 {[%clk 0:00:07]} 39. Kg1 {[%clk 0:00:37]}  h5 {[%clk 0:00:04]} 40. Kh2 {[%clk 0:00:36]}  Qb6 {[%clk 0:00:02]} 41. Qf3+ {[%clk 0:00:31]}  Ke8 {[%clk 0:00:03]} 42. Qf6 {[%clk 0:00:28]}  b3 {[%clk 0:00:03]} 43. Qxg6+ {[%clk 0:00:28]}  Kd7 {[%clk 0:00:03]} 44. Qf7+ {[%clk 0:00:28]}  Kc8 {[%clk 0:00:04]} 45. Qe8+ {[%clk 0:00:27]}  Kb7 {[%clk 0:00:04]} 46. Qd7+ {[%clk 0:00:27]}  Kb8 {[%clk 0:00:05]} 47. Qe8+ {[%clk 0:00:23]}  Ka7 {[%clk 0:00:04]} 48. Qf7+ {[%clk 0:00:23]}  Ka6 {[%clk 0:00:04]} 49. Qxh5 {[%clk 0:00:17]}  Qxf2+ {[%clk 0:00:03]} 50. Kh3 {[%clk 0:00:16]}  Qf1+ {[%clk 0:00:02]} 51. Kh2 {[%clk 0:00:13]}  Qf2+ {[%clk 0:00:03]} 52. Kh3 {[%clk 0:00:13]}  Qb6 {[%clk 0:00:03]} 53. Qe2+ {[%clk 0:00:12]}  Ka7 {[%clk 0:00:03]} 54. Qb2 {[%clk 0:00:12]}  Kb7 {[%clk 0:00:02]} 55. Qg2+ {[%clk 0:00:12]}  Kc7 {[%clk 0:00:02]} 56. Qb2 {[%clk 0:00:11]}  Kd7 {[%clk 0:00:03]} 57. Qd2+ {[%clk 0:00:10]}  Ke7 {[%clk 0:00:03]} 58. Qb2 {[%clk 0:00:09]}  Qb4 {[%clk 0:00:02]} 59. g4 {[%clk 0:00:07]}  Qc4 {[%clk 0:00:03]} 60. Kh4 {[%clk 0:00:06]}  Qc2 {[%clk 0:00:02]} 61. Qa3+ {[%clk 0:00:06]}  Kd8 {[%clk 0:00:02]} 62. Qa8+ {[%clk 0:00:06]}  Kc7 {[%clk 0:00:02]} 63. Qa7+ {[%clk 0:00:06]}  Kc6 {[%clk 0:00:02]} 64. Qa6+ {[%clk 0:00:06]}  Kc5 {[%clk 0:00:02]} 65. Qc8+ {[%clk 0:00:06]}  Kd4 {[%clk 0:00:02]} 66. Qd7+ {[%clk 0:00:06]}  Ke3 {[%clk 0:00:02]} 67. Qxe6 {[%clk 0:00:07]}  b2 {[%clk 0:00:03]} 68. Qh6+ {[%clk 0:00:07]}  Kf3 {[%clk 0:00:02]} 69. Qf6+ {[%clk 0:00:06]}  Kg2 {[%clk 0:00:03]} 70. Qc6+ {[%clk 0:00:05]}  Qxc6 {[%clk 0:00:02]} 71. g5 {[%clk 0:00:05]}  b1=Q {[%clk 0:00:03]} 72. Kh5 {[%clk 0:00:05]}  Qbg6+ {[%clk 0:00:03]} 73. Kg4 {[%clk 0:00:05]}  Qce4# {[%clk 0:00:04]} 0-1


[Site "https://www.chess.com"]

[Event "Titled Tuesday Blitz January 17 Late 2023"]
[White "Lacasa Diaz, Jose Antonio"]
[Black "Adithya A Chullikkad"]
[WhiteFideId "2203375"]
[BlackFideId "45078734"]
[WhiteElo "2359"]
[BlackElo "2259"]
[Result "1-0"]
[Round "02"]
[TimeControl "180+2"]
[Date "2023.01.17"]
[WhiteClock "0:02:22"]
[BlackClock "0:02:13"]

1. e4 {[%clk 0:03:00]}  c5 {[%clk 0:02:47]} 2. Nf3 {[%clk 0:03:00]}  d6 {[%clk 0:02:46]} 3. d4 {[%clk 0:02:58]}  cxd4 {[%clk 0:02:46]} 4. Nxd4 {[%clk 0:02:59]}  Nf6 {[%clk 0:02:47]} 5. Nc3 {[%clk 0:03:00]}  a6 {[%clk 0:02:47]} 6. Be3 {[%clk 0:03:00]}  e5 {[%clk 0:02:39]} 7. Nb3 {[%clk 0:02:59]}  Be6 {[%clk 0:02:39]} 8. Qd2 {[%clk 0:02:43]}  Be7 {[%clk 0:02:30]} 9. O-O-O {[%clk 0:02:43]}  b5 {[%clk 0:02:25]} 10. f4 {[%clk 0:02:42]}  O-O {[%clk 0:02:22]} 11. f5 {[%clk 0:02:41]}  Bc8 {[%clk 0:02:20]} 12. g4 {[%clk 0:02:40]}  Bb7 {[%clk 0:02:16]} 13. Bd3 {[%clk 0:02:29]}  Nxg4 {[%clk 0:02:15]} 14. Rhg1 {[%clk 0:02:29]}  Nxe3 {[%clk 0:02:15]} 15. Qxe3 {[%clk 0:02:28]}  h6 {[%clk 0:02:16]} 16. Qxh6 {[%clk 0:02:25]}  Bf6 {[%clk 0:02:13]} 17. Rxg7+ {[%clk 0:02:22]}  Bxg7 {[%clk 0:02:13]} 18. Rg1 {[%clk 0:02:22]} 1-0


[Site "https://www.chess.com"]

[Event "Titled Tuesday Blitz January 17 Late 2023"]
[White "Marin Masis, Jose Esteban"]
[Black "Rottenwohrer Suarez, Juan"]
[WhiteFideId "6508146"]
[BlackFideId "32068182"]
[WhiteElo "1938"]
[BlackElo "2265"]
[Result "1-0"]
[Round "02"]
[TimeControl "180+2"]
[Date "2023.01.17"]
[WhiteClock "0:01:36"]
[BlackClock "0:01:01"]

1. e4 {[%clk 0:03:00]}  b6 {[%clk 0:02:52]} 2. d4 {[%clk 0:02:59]}  Bb7 {[%clk 0:02:47]} 3. Nc3 {[%clk 0:03:00]}  e6 {[%clk 0:02:45]} 4. Nf3 {[%clk 0:02:59]}  Bb4 {[%clk 0:02:39]} 5. Bd3 {[%clk 0:02:59]}  Nf6 {[%clk 0:02:38]} 6. Qe2 {[%clk 0:02:54]}  c5 {[%clk 0:02:34]} 7. a3 {[%clk 0:02:52]}  Ba5 {[%clk 0:02:27]} 8. dxc5 {[%clk 0:02:51]}  bxc5 {[%clk 0:02:26]} 9. O-O {[%clk 0:02:50]}  O-O {[%clk 0:02:23]} 10. e5 {[%clk 0:02:46]}  Bxc3 {[%clk 0:01:58]} 11. bxc3 {[%clk 0:02:47]}  Bxf3 {[%clk 0:01:42]} 12. Qxf3 {[%clk 0:02:35]}  Nd5 {[%clk 0:01:42]} 13. c4 {[%clk 0:02:13]}  Nb6 {[%clk 0:01:39]} 14. Qh5 {[%clk 0:02:09]}  g6 {[%clk 0:01:38]} 15. Qh6 {[%clk 0:02:08]}  f6 {[%clk 0:01:34]} 16. Bxg6 {[%clk 0:01:53]}  Qe7 {[%clk 0:01:04]} 17. Be4 {[%clk 0:01:49]}  Nc6 {[%clk 0:01:02]} 18. exf6 {[%clk 0:01:37]}  Qxf6 {[%clk 0:01:01]} 19. Qxh7# {[%clk 0:01:36]} 1-0


[Site "https://www.chess.com"]